Cogmind - Beta 17.1 @@@ ROGUE MODE // 2026.09.02 @ 17:52:38 Player: Clog Result: Destroyed by P-60 Hacker with Shock Rifle Performance ------------- Evolutions (4) 2000 Regions Visited (4) 800 Robots Destroyed (41) 205 Value Destroyed (1422) 1422 Prototype IDs (3) 60 Alien Tech Used (0) 0 Bonus (1222) 1222 TOTAL SCORE: 5709 Bonus ------- High Alert Combat Kills 18 Follower Combat Kills 428 Registered with UFD 300 Met Optimus in HQ 500 Friendly Fire -24 Cogmind --------- Core Integrity 0/850 Matter 300/300 Energy 68/100 System Corruption 18% Temperature Cool (0) Movement Walking (120) Location -6/Factory Parts ------- > --- POWER (1) -------- (None) > --- PROPULSION (5) --- Carbon-fiber Leg Flexi-carbon Leg Armored Leg > --- UTILITY (6) ------ Seismic Detector > --- WEAPON (3) ------- Companion Sword > --- INVENTORY (5) ---- Light Nuclear Core Carbon-fiber Leg Seismic Detector Remote Datajack Peak State ------------ > --- POWER ------------ Subdweller Power Source > --- PROPULSION ------- Carbon-fiber Leg Carbon-fiber Leg Overtuned Scrapsphere Overtuned Huge Scrapsphere > --- UTILITY ---------- Large Storage Unit Improved Sensor Array Seismic Detector Layered Medium Armor Plating > --- WEAPON ----------- Battle Rifle Grenade Launcher Companion Sword > --- INVENTORY -------- Light Nuclear Core VTOL Module Scrapoid Pod Beam Rifle Overtuned Quantum Rifle Phase Cannon Minigun CPS Tube DRS Beacon [Rating: 46] Favorites ----------- Power Ion Engine Engine Ion Engine Power Core Light Nuclear Core Propulsion Light Treads Treads Light Treads Leg Carbon-fiber Leg Wheel Compact Wheel Flight Unit VTOL Module Utility Seismic Detector Device Seismic Detector Storage Large Storage Unit Protection Improved Medium Armor Plating Weapon Beam Rifle Energy Gun Beam Rifle Ballistic Gun Minigun Launcher Grenade Launcher Special Weapon Remote Datajack Slashing Weapon Companion Sword Build | -11 -10 -10 -9 -6 ------- Run | Yrd Mat Sub Scr Fac Slots Evolved 8 | . . . . 8 Power . | . . . . . Propulsion 3 | . . . . 3 Utility 4 | . . . . 4 Weapon 1 | . . . . 1 Parts Attached 49 | 7 1 2 1 38 Power 6 | 1 . . . 5 Engine 2 | 1 . . . 1 Core 4 | . . . . 4 Reactor . | . . . . . Propulsion 21 | 2 . . . 19 Treads 2 | 2 . . . . Leg 14 | . . . . 14 Wheel 3 | . . . . 3 Hover . | . . . . . Flight 2 | . . . . 2 Utility 9 | 2 1 . . 6 Device 5 | 1 . . . 4 Storage 2 | 1 1 . . . Processor . | . . . . . Hackware . | . . . . . Protection 2 | . . . . 2 Artifact . | . . . . . Weapon 13 | 2 . 2 1 8 Energy Gun 4 | . . 2 . 2 Energy Cannon . | . . . . . Ballistic Gun 5 | 2 . . 1 2 Ballistic Cannon . | . . . . . Launcher 1 | . . . . 1 Special Weapon 2 | . . . . 2 Impact Weapon . | . . . . . Slashing Weapon 1 | . . . . 1 Piercing Weapon . | . . . . . Special Melee Weapon . | . . . . . Unidentified Prototypes 1 | . . . . 1 Corrupted Parts 1 | . . . . 1 System Corruption 5 | . . . . 5 Parts Lost 25 | . . 2 . 23 Power 4 | . . . . 4 Propulsion 11 | . . 1 . 10 Utility 5 | . . . . 5 Weapon 5 | . . 1 . 4 Highest Loss Streak 8 | . . 2 . 8 To Critical Strikes . | . . . . . Average Backups 11 | 2 8 13 13 6 Power . | . 1 . 1 . Propulsion 1 | 1 3 3 2 . Utility 2 | . . 2 3 . Weapon 5 | . 3 7 6 2 Tool/Special . | . . . . . Unused Backups 17 | . . 3 9 5 Power 2 | . . 1 . 1 Propulsion 4 | . . 2 2 . Utility 3 | . . . 2 1 Weapon 7 | . . . 5 2 Tool/Special 1 | . . . . 1 Average Slot Usage (%) 79 | . 100 95 85 51 Engine 11 | . 14 14 14 1 Treads 12 | . 28 23 14 . Leg 3 | . . . . 14 Device 12 | . 14 14 14 8 Storage 11 | . 14 14 14 3 Energy Gun 10 | . . 13 14 . Ballistic Gun 12 | . 28 14 14 2 Slashing Weapon 1 | . . . . 5 Peak Build Rating 46 | 7 9 10 15 46 Average Rating 15 | 5 7 9 11 31 On Entrance 8 | . 7 9 9 15 Avg Prop Armor Cover (%) 5 | . . . . 5 Naked Turns . | . . . . . Heaviest Build 44 | 14 29 31 32 44 Greatest Support 86 | 40 40 40 20 86 Greatest Overweight (x) 4 | . . 1 1 4 Average Overweight (x) . | . . . 1 . Largest Inventory Capacity 15 | 8 15 15 15 15 Average Capacity 13 | 7 14 15 15 9 Most Carried 15 | 5 13 15 15 15 Average Carried 12 | 3 8 14 14 7 Final Capacity 15 | 8 15 15 15 5 Final Carried 15 | 4 13 15 15 4 Class Distribution -------------------- 87% | Mutant 12% | Scavenger-Mutant Dominant Class ---------------- Mutant | -10/Materials Mutant | -10/Subcaves Mutant | -9/Scraptown Scavenger-Mutant | -6/Factory Resources | -11 -10 -10 -9 -6 ----------- Run | Yrd Mat Sub Scr Fac Matter Collected 1792 | 316 72 97 10 1297 Remotely . | . . . . . Salvage Created 1686 | 134 90 140 . 1322 Parts 90 | 6 2 9 . 73 Haulers Intercepted . | . . . . . Recyclers Shooed 4 | . . . . 4 Parts Field Recycled . | . . . . . Retrieved Matter . | . . . . . Parts Self-Destructed 8 | . . 8 . . Prevented . | . . . . . Parts Restored . | . . . . . Kills | -11 -10 -10 -9 -6 ------- Run | Yrd Mat Sub Scr Fac Combat Hostiles Destroyed 34 | . 2 4 . 28 Melee 16 | . . . . 16 Guns 6 | . 2 4 . . AOE 12 | . . . . 12 Classes Destroyed 9 | 2 1 1 . 5 Worker 1 | . . . . 1 Builder 1 | . . . . 1 Tunneler 2 | 2 . . . . Recycler 3 | 1 . . . 2 Swarmer 15 | . . . . 15 Grunt 11 | . 2 1 . 8 Sentry 3 | . . . . 3 Programmer 2 | . . . . 2 Subdweller 3 | . . 3 . . Best Kill Streak 10 | 2 2 2 . 10 Combat Bots Only 10 | . 2 2 . 10 Max Kills in Single Turn 5 | 1 1 1 . 5 Gunslinging . | . . . . . Exploded 5 | . . . . 5 Melee 2 | . . . . 2 Uniques/NPCs Destroyed . | . . . . . Combat | -11 -10 -10 -9 -6 -------- Run | Yrd Mat Sub Scr Fac Hostile Shots Fired 451 | . 19 42 . 390 Missed 142 | . 9 14 . 119 Hits 309 | . 10 28 . 271 Projectile 309 | . 10 28 . 271 Critical Strikes 9 | . . 1 . 8 Part Disruptions 1 | . . . . 1 Damage Taken 4904 | . 137 591 . 4176 Core 996 | . 54 87 . 855 Absorbed by Shields . | . . . . . Core Remaining (%) 71 | 100 . . 43 . Volleys Fired 66 | 14 13 29 . 10 Largest 2 | 2 2 2 . 2 Hottest 100 | 40 40 76 . 100 Shots Fired 123 | 28 26 56 . 13 Gun 118 | 28 26 56 . 8 Cannon . | . . . . . Launcher 5 | . . . . 5 Special . | . . . . . Kinetic 87 | 28 26 29 . 4 Thermal 27 | . . 27 . . Explosive 5 | . . . . 5 Electromagnetic 4 | . . . . 4 Robot Hit Streak 10 | 7 5 10 . 3 Robot Miss Streak 3 | 3 2 3 . 2 Penetration Max 1 | . . . . 1 Secondary Targets 2 | . 1 1 . . Max Gunslinging Chain 1 | . 1 1 . . Shots Hit Robots 139 | 18 18 40 . 63 Core Hits 66 | 5 5 9 . 47 Critical Kills . | . . . . . Critical Parts Destroyed 1 | 1 . . . . Critical Strikes 4 | 1 . 1 . 2 Burn 1 | . . 1 . . Destroy 1 | 1 . . . . Melee Attacks 92 | . . . . 92 Impact . | . . . . . Slashing 92 | . . . . 92 Piercing . | . . . . . Sneak Attacks 8 | . . . . 8 Combat Hostiles 1 | . . . . 1 Follow-up Attacks 2 | . . . . 2 Damage Inflicted 4195 | 196 184 553 . 3262 Guns 1080 | 196 184 553 . 147 Cannons . | . . . . . Explosions 640 | . . . . 640 Melee 2475 | . . . . 2475 Ramming . | . . . . . Kinetic 731 | 196 184 262 . 89 Thermal 291 | . . 291 . . Explosive 640 | . . . . 640 Electromagnetic 58 | . . . . 58 Impact . | . . . . . Slashing 2475 | . . . . 2475 Piercing . | . . . . . Highest Corruption 18 | . . . . 18 Average Corruption 12 | . . . . 12 Corruption Purged . | . . . . . Corruption Blocked . | . . . . . Effects 41 | . . . . 41 Message Errors 8 | . . . . 8 Matter Fused 12 | . . . . 12 Heat Flow Errors 6 | . . . . 6 Energy Discharges 6 | . . . . 6 Data Loss (minor) 4 | . . . . 4 Data Loss (major) 2 | . . . . 2 Misfires 1 | . . . . 1 Alerts 1 | . . . . 1 Misdirections 1 | . . . . 1 Overload Shots . | . . . . . Overflow Damage 248 | . . . . 248 Projectiles . | . . . . . Explosions 21 | . . . . 21 Melee 227 | . . . . 227 Knockbacks . | . . . . . Impact . | . . . . . Kinetic . | . . . . . Secondary . | . . . . . Self-Inflicted Damage 58 | . . . . 58 Shots 2 | . . . . 2 Rammed . | . . . . . Targets Rammed . | . . . . . Kicked . | . . . . . Crushed . | . . . . . Highest Temperature 274 | . 15 274 . 250 Average Temperature 88 | . 9 151 . 80 Received Heat Transfer 1256 | . 78 373 . 805 Siege Activations . | . . . . . Martial Activations . | . . . . . Shielding Activations . | . . . . . Robots Disrupted 1 | . . . . 1 Combat Hostiles 1 | . . . . 1 Robots Corrupted . | . . . . . Combat Hostiles . | . . . . . Parts Fried . | . . . . . Impact Corruptions . | . . . . . Robots Melted . | . . . . . Combat Hostiles . | . . . . . Parts Melted . | . . . . . Heat Transferred 814 | . . 814 . . Parts Sabotaged . | . . . . . Parts Stolen . | . . . . . Parts Stripped . | . . . . . Power Chain Reactions . | . . . . . Alert | -11 -10 -10 -9 -6 ------- Run | Yrd Mat Sub Scr Fac Maximum Alert Level 2 | . . . . 2 Low Security (%) 50 | 100 100 . . 25 Level 1 38 | . . . . 56 Level 2 11 | . . . . 17 Level 3 . | . . . . . Level 4 . | . . . . . Level 5 . | . . . . . High Security . | . . . . . Max Security . | . . . . . Peak Influence 569 | 5 50 . . 569 Initial . | . . . . . Average 177 | . 5 . . 262 Influence Increases 1332 | 15 58 20 . 1239 Destroy 0b10 Robot/C 900 | . 40 20 . 840 Destroy 0b10 Robot/NC 50 | 15 . . . 35 Destroy Leader 162 | . 10 . . 152 Allied During Kill 114 | . . . . 114 Successful Hack 8 | . 8 . . . Disable Machine 30 | . . . . 30 Destroy Structure 53 | . . . . 53 Lose Combat Pursuer 15 | . . . . 15 Influence Decreases 837 | 15 58 20 . 744 Time Decay 547 | 15 58 20 . 454 Lost Part 230 | . . . . 230 Lost Ally 60 | . . . . 60 Squads Dispatched 12 | . . . . 12 Investigation 1 | . . . . 1 Extermination 4 | . . . . 4 Reinforcement 4 | . . . . 4 Assault . | . . . . . Garrison 3 | . . . . 3 Intercept . | . . . . . Searches Triggered . | . . . . . Construction Impeded 1 | . . . . 1 Haulers Reinforced . | . . . . . Active Scanning Responses . | . . . . . Cargo Convoy Interrupts 1 | . . . . 1 Stealth | -11 -10 -10 -9 -6 --------- Run | Yrd Mat Sub Scr Fac Distress Signals 4 | . . . . 4 Communications Jammed . | . . . . . Distress Signals . | . . . . . Times Spotted 67 | . 2 6 . 59 Peak Tracking Total 14 | . 2 2 . 14 Tactical Retreats 1 | . . . . 1 Traps | -11 -10 -10 -9 -6 ------- Run | Yrd Mat Sub Scr Fac Traps Triggered 1 | . . 1 . . Indirectly . | . . . . . Trap Hack Attempts . | . . . . . Triggered . | . . . . . Disarmed . | . . . . . Reprogrammed . | . . . . . Reused . | . . . . . Traps Extracted . | . . . . . Installed . | . . . . . Triggered . | . . . . . Machines | -11 -10 -10 -9 -6 ---------- Run | Yrd Mat Sub Scr Fac Machines Disabled 2 | . . . . 2 Max in Single Turn . | . . . . . Machines Repaired . | . . . . . Machines Dismantled . | . . . . . Machines Sabotaged . | . . . . . Overloaded Fab Kills . | . . . . . Hacking | -11 -10 -10 -9 -6 --------- Run | Yrd Mat Sub Scr Fac Machines Accessed 13 | . 4 . 7 2 Terminals 5 | . 4 . . 1 Fabricators . | . . . . . Repair Stations . | . . . . . Recycling Units 1 | . . . . 1 Scanalyzers . | . . . . . Garrison Access . | . . . . . Total Hacks 43 | . 10 . 30 3 Successful 34 | . 3 . 30 1 Failed 9 | . 7 . . 2 Catastrophic 2 | . . . . 2 Database Lockouts . | . . . . . Manual 12 | . 10 . . 2 Terminals 11 | . 10 . . 1 Fabricators . | . . . . . Repair Stations . | . . . . . Recycling Units 2 | . . . . 2 Scanalyzers . | . . . . . Garrison Access . | . . . . . Terminal Hacks 30 | . . . 30 . Record 23 | . . . 23 . Robot Analysis 6 | . . . 6 . Open Door 1 | . . . 1 . Fabricator Hacks . | . . . . . Repair Station Hacks . | . . . . . Recycling Unit Hacks . | . . . . . Scanalyzer . | . . . . . Garrison Access Hacks . | . . . . . Unauthorized Hacks 4 | . 3 . . 1 Terminals 3 | . 3 . . . Skim 3 | . 3 . . . Fabricators . | . . . . . Repair Stations . | . . . . . Recycling Units 1 | . . . . 1 Fedlink 1 | . . . . 1 Scanalyzers . | . . . . . Garrison Access . | . . . . . Data Cores Recovered . | . . . . . Used . | . . . . . Hacking Detections 5 | . 3 . . 2 Full Trace Events . | . . . . . Feedback Events . | . . . . . Feedback Blocked . | . . . . . Robot Schematics Acquired . | . . . . . Robots Built . | . . . . . Authchips . | . . . . . Time . | . . . . . Total Robot Build Rating . | . . . . . Part Schematics Acquired . | . . . . . Parts Built . | . . . . . Authchips . | . . . . . Time . | . . . . . Total Part Build Rating . | . . . . . Part Studies Acquired . | . . . . . Parts Repaired . | . . . . . Time . | . . . . . Parts Recycled . | . . . . . Recycled Matter . | . . . . . Retrieved Matter . | . . . . . Retrieved Components . | . . . . . Parts Scanalyzed . | . . . . . Part Schematics Acquired . | . . . . . Parts Damaged . | . . . . . Bothacking | -11 -10 -10 -9 -6 ------------ Run | Yrd Mat Sub Scr Fac Used RIF Installer . | . . . . . Robots Hacked . | . . . . . Non-combat . | . . . . . Combat . | . . . . . Robot Hacks Applied . | . . . . . Relay Couplers Released . | . . . . . Fabnet Peak Effective % . | . . . . . Robots Rewired . | . . . . . Allies Hacked 1 | . . . . 1 Hacks Repelled . | . . . . . Allies | -11 -10 -10 -9 -6 -------- Run | Yrd Mat Sub Scr Fac Total Allies 5 | . . . . 5 Largest Group 5 | . . . . 5 Highest-Rated Group 238 | . . . . 238 Highest-Rated Ally 50 | . . . . 50 Initial UFD Resources 24 | . . . . 24 Total Orders . | . . . . . Ally Attacks 84 | . . . . 84 Total Damage 1220 | . . . . 1220 Kills 18 | . . . . 18 Allies Corrupted . | . . . . . Allies Melted . | . . . . . Intel | -11 -10 -10 -9 -6 ------- Run | Yrd Mat Sub Scr Fac Active Infowar (turns) 5828 | 1 455 461 3900 1011 Sensors 320 | . . . . 320 Seismic 5828 | 1 455 461 3900 1011 Robot Analysis Total 6 | . . . 6 . Derelict Logs Recovered 4 | . . 1 3 . Drone Launches . | . . . . . Drone Recoveries . | . . . . . Exploration | -11 -10 -10 -9 -6 ------------- Run | Yrd Mat Sub Scr Fac Turns Passed 6306 | 181 455 461 3900 1309 Spaces Moved 2788 | 90 244 203 1619 632 Core 17 | 17 . . . . Treads 2139 | 73 244 203 1619 . Legs 461 | . . . . 461 Wheels 125 | . . . . 125 Hover . | . . . . . Flight 46 | . . . . 46 Fastest Speed 50 | 50 160 160 240 80 Average Speed 201 | 139 160 180 240 134 Slowest Speed 355 | 160 160 240 240 355 Overloaded Moves . | . . . . . Propulsion Burnouts . | . . . . . Robots Hopped . | . . . . . Potential Cave-ins . | . . . . . Cave-ins Triggered 1 | . . . . 1 Exploration Rate (%) 30 | 4 27 19 90 13 Regions Visited 4 Branch Regions 2 Pre-discovered Areas . | . . . . . Known Exits Taken . | . . . . . Unknown Exits Taken 4 | 1 1 1 1 . Scrap Searched 2 | . . . 2 . Spaces Dug 13 | . . . . 13 Terrain Destroyed 29 | . . . . 29 Melee 13 | . . . . 13 Projectile 1 | . . . . 1 AOE 15 | . . . . 15 Terrain Rammed . | . . . . . Walls Destroyed . | . . . . . Machines Disabled . | . . . . . Actions | -11 -10 -10 -9 -6 --------- Run | Yrd Mat Sub Scr Fac Total 3242 | 120 285 244 1639 954 Wait 146 | . 17 1 . 128 Move 2784 | 89 243 202 1618 632 Hop . | . . . . . Pick Up 58 | 10 10 6 10 22 Fast Attach 12 | 1 . . 1 10 Attach 32 | 6 . 1 . 25 Detach 7 | . . . . 7 Swap 9 | . 1 1 . 7 Drop 37 | . 1 4 10 22 Fire 66 | 14 13 29 . 10 Melee 90 | . . . . 90 Ram . | . . . . . Kick . | . . . . . Crush . | . . . . . Escape Stasis . | . . . . . Rewire 1 | . . . . 1 Trap . | . . . . . Miscellaneous . | . . . . . Route ------- -11/Scrapyard -10/Materials -10/Subcaves -9/Scraptown (discovered 2 exits: *Fac x2) -6/Factory (discovered 1 exit: Fac) History --------- Turn | Location | Event 10 | -11/Scrapyard | Discovered new exit (range 15) 182 | -11/Scrapyard | Entered Materials 301 | -10/Materials | Build established: Mutant 623 | -10/Materials | Discovered new exit (range 5) 637 | -10/Materials | Entered Subcaves 638 | -10/Subcaves | Approached by a straggling Scientist 956 | -10/Subcaves | Core integrity fell below 50% 977 | -10/Subcaves | A swath of the cavern ceiling suddenly collapsed 1098 | -10/Subcaves | Entered Scraptown 1187 | -9/Scraptown | Heard Great Nut preacher, LISTEN AND RECITE! 1218 | -9/Scraptown | Visited Cyclists 1302 | -9/Scraptown | Visited SPCMW 1367 | -9/Scraptown | Visited Awakened 1494 | -9/Scraptown | Visited IN-MT5's Study 1562 | -9/Scraptown | Visited Cave Peace 1646 | -9/Scraptown | Scanned Subdweller tech in exchange for log data 1653 | -9/Scraptown | Learned 8 Factory zone layouts 1655 | -9/Scraptown | Learned Research terminal intel 1658 | -9/Scraptown | Learned Factory emergency access door positions 1924 | -9/Scraptown | Discovered new exit (range 4) 2919 | -9/Scraptown | Visited UFD Registry 2919 | -9/Scraptown | Registered with UFD as "Thermocase" 3126 | -9/Scraptown | Guru changed UFD alias to "Kinetifunk" 3307 | -9/Scraptown | Visited Symbiants 3497 | -9/Scraptown | Visited Analyses Database 3550 | -9/Scraptown | Visited Chapter 10 3614 | -9/Scraptown | Visited Sword Containment 3902 | -9/Scraptown | Delivered Scrap Shield to a Scientist 4142 | -9/Scraptown | Visited Scrapoid Pod Storage 4154 | -9/Scraptown | Found Scrapoid Pod 4196 | -9/Scraptown | Visited Derelict Rescue Squad 4225 | -9/Scraptown | Found DRS Beacon 4267 | -9/Scraptown | Visited Science Testing Area 4308 | -9/Scraptown | Visited Abandonware Association 4324 | -9/Scraptown | Learned abandonware demo "OVRCLOCK.EXE" 4332 | -9/Scraptown | Learned abandonware demo "ERRANTS.EXE" 4392 | -9/Scraptown | Visited Curators Association 4473 | -9/Scraptown | Visited Modified Component R&D 4726 | -9/Scraptown | Found Prototype Slashing Weapon 4840 | -9/Scraptown | Met Optimus 4840 | -9/Scraptown | Accepted into 0bPrime 4993 | -9/Scraptown | Discovered new exit (range 3) 4998 | -9/Scraptown | Entered Factory 4998 | -6/Factory | Evolved 8 slots: Propulsion x3, Utility x4, Weapon x1 4999 | -6/Factory | Identified exit to Factory 5001 | -6/Factory | Identified Companion Sword 5159 | -6/Factory | Destroyed 10 combat bots 5170 | -6/Factory | Crushed by falling debris 5336 | -6/Factory | Garrison activated, responded to threat 5392 | -6/Factory | System corruption reached 10% 5401 | -6/Factory | Core integrity fell below 50% 5419 | -6/Factory | Lost 8 parts (1p3n2u2w) 5830 | -6/Factory | Scrapoid Pod released 06F05-D (x5) 5866 | -6/Factory | Loaded intel: 8 recycling unit locations 6148 | -6/Factory | Core integrity fell below 20% 6218 | -6/Factory | Build established: Scavenger-Mutant 6274 | -6/Factory | Cargo convoy interrupted 6307 | -6/Factory | Destroyed by P-60 Hacker with Shock Rifle Last Messages --------------- 06300_ CPS Tube destroyed. 06300_ K-01 Serf collects debris. 06301_ Carbon-fiber Leg destroyed. 06302_ H-61 Shepherd calls for reinforcements. 06302_ ALERT: Hostile activity reported, dispatching reinforcements to area. 06302_ Slug penetrates Wall. 06303_ Penetrated by Slug. 06303_ P-60 Hacker destroyed. 06304_ H-61 Shepherd shuts down. 06304_ K-01 Serf collects debris. 06305_ Slug penetrates Wall. 06305_ Imp. Medium Armor Plating destroyed. 06305_ Slug penetrates Wall. 06305_ P-60 Hacker resets U-05 Engineer, system corruption cleaned. 06305_ Slug penetrates U-05 Engineer. 06306_ Penetrated by Slug. 06306_ Flexi-carbon Leg destroyed. 06306_ Attempting to rewire H-61 Shepherd. Map ----- +----------------------------------------------------+ | + #?????????????????????? | | # +????+????????????????? | | # #?????????????????????? | | ###### T## # #?????????????????????? | | ?????##### # #?????????????????????? | | ?????????# / #?????????????????????? | | ?????????# #################?????????????????????? | | ?????????# #?????????????????????????????????????? | | ?????????# #?????????????????????????????????????? | | ????######+####??????????????????????????????????? | | ????# #??????????????????????????????????? | | ????# #??????????????????????????????????? | | ????# #???##############?????????????????? | | ????# #???# ! #?????????????????? | | ????# #???# +?????????????????? | | ????# #???# #?????????????????? | | ????# #???# #?????????????????? | | ????# #???# #?????????????????? | | ##########/####???# #?????????????????? | | % #???# #?????????????????? | | % % #???# #?????????????????? | | #???# #?????????????????? | | #???# #?????????????????? | | % #???# u #?????????????????? | | ######### ##### #????????= ""?????? | | ##% ###########@###"#### ! ""?????? | | ## ![! =%uH=%==%*[ ! ???? | | ##%% %*!%*% hx!p[p!###### ???? | | +[ /%%=! h! x #???????????###??????? | | ##= *% ki * p #????????????????????? | | ## #????????????????????? | | ##########+###########??????? ###?????????? | | #????## #!] ###### ! #?????????? | | % #?????# #!] # #?????????? | | #?????# #] + #??????? | | +#######?????# # & # #?????????? | | #??????# # =### ## #?????????? | | #??????# # #?? #???+###?????????? | | """ #??????# + """ #???#????????????????? | | """ #?????## # """ #????????????????????? | | """ #?????## # " #????????????????????? | | """ #?????########### "F" #????????????????????? | | #??????????###??# """ #????????????????????? | | """ #???????????????# #????????????????????? | | """ ? #???????????????#####/#????????????????????? | | ""????????????????????????? #????????????????????? | | ""????????????????????????? #????????????????????? | | ?????????????????????????? ?????????????????????? | | ##????????????????????????? ?????????????????????? | | ??????????????????????????? ?????????????????????? | +----------------------------------------------------+ Best States ------------- Heat Dissipation 37 Energy Generation 18 Energy Capacity 250 Matter Stores 300 Matter Capacity 300 Sight Range 16 Robot Scan Range 15 Terrain Scan Density 10 Armor Coverage 225 Evasion (%) 55 Recoil Reduction 2 Item Schematics ----------------- None Robot Schematics ------------------ None Fabricated ------------ Nothing Repaired ---------- Nothing Studied --------- None Alien Tech Used ----------------- None Achievements -------------- Ambidextrous Jackpot Longdome?! Quick And Dirty Challenges ------------ None Game ------ Seed MeleeSapperAutogun Manual? 0 Play Time 00:44:11 Cumulative 42.2 hours Start 2026.09.02 @ 17:08:41 End 2026.09.02 @ 17:52:38 Sessions 1 Manual Loads 0 Difficulty Rogue Special Mode None Game No. 49 Rogue 46 Adventurer 3 Explorer 0 Win Type - Total 1 Types 1/0/0/0/0/0/0/0/0/0 Lore% 40 Gallery% 34 Achievement% 34 Wizard Run 0 Options --------- Layout 1 ASCII 0 Keyboard 0 Movement Mouse Keybinds 0 Fullscreen 1 Font 32/SmallcapsGlow Map View 50x35 Zoom Use 0% Tactical HUD 1 Map Filters NONE Filters NONE Steam 1 RUN: 223ff3c6-df26-41d1-802d-bb53ee8914a5